Cogmind - Beta 10.1 @@@ ROGUE MODE // 2020.09.25 @ 13:46:17 Player: HOTSOUP Result: Destroyed by S-10 Pest with Light Assault Rifle Performance ------------- Evolutions (0) 0 Regions Visited (1) 200 Robots Destroyed (5) 25 Value Destroyed (165) 165 Prototype IDs (4) 80 Alien Tech Used (0) 0 Bonus (0) 0 TOTAL SCORE: 470 Bonus ------- None Cogmind --------- Core Integrity 0/250 Matter 287/300 Energy 100/100 System Corruption 6% Temperature Cool (0) Movement Core (50) Location -10/Materials Parts ------- > --- POWER (1) -------- (None) > --- PROPULSION (2) --- (None) > --- UTILITY (2) ------ Utility Shielding > --- WEAPON (2) ------- (None) > --- INVENTORY (4) ---- Light Ion Engine Light Nuclear Core Sensor Array Datajack Peak State ------------ > --- POWER ------------ Light Ion Engine > --- PROPULSION ------- Flight Unit Flight Unit > --- UTILITY ---------- Utility Shielding > --- WEAPON ----------- Mining Claw > --- INVENTORY -------- Light Nuclear Core Flight Unit Datajack [Rating: 5] Favorites ----------- Power Light Ion Engine Engine Light Ion Engine Propulsion Flight Unit Flight Unit Flight Unit Utility Utility Shielding Device Sensor Array Protection Utility Shielding Weapon Mining Claw Energy Gun EM Pulse Gun Slashing Weapon Mining Claw Special Melee Weapon Datajack Build | -11 -10 ------- Run | Scr Mat Slots Evolved . | . . Power . | . . Propulsion . | . . Utility . | . . Weapon . | . . Parts Attached 11 | 1 10 Power 3 | . 3 Engine 3 | . 3 Core . | . . Reactor . | . . Propulsion 3 | . 3 Treads . | . . Leg . | . . Wheel . | . . Hover . | . . Flight 3 | . 3 Utility 2 | . 2 Device 1 | . 1 Storage . | . . Processor . | . . Hackware . | . . Protection 1 | . 1 Artifact . | . . Weapon 3 | 1 2 Energy Gun 1 | 1 . Energy Cannon . | . . Ballistic Gun . | . . Ballistic Cannon . | . . Launcher . | . . Special Weapon . | . . Impact Weapon . | . . Slashing Weapon 1 | . 1 Piercing Weapon . | . . Special Melee Weapon 1 | . 1 Unidentified Prototypes . | . . Parts Lost 5 | . 5 Power . | . . Propulsion 3 | . 3 Utility . | . . Weapon 2 | . 2 Highest Loss Streak 2 | . 2 Average Slot Usage (%) 32 | . 32 Engine 2 | . 2 Flight 9 | . 9 Device 2 | . 2 Protection 10 | . 10 Energy Gun 2 | . 2 Slashing Weapon 5 | . 5 Naked Turns . | . . Heaviest Build 6 | 2 6 Greatest Support 8 | 3 8 Greatest Overweight (x) 1 | . 1 Average Overweight (x) . | . . Largest Inventory Capacity 4 | 4 4 Average Capacity 4 | 4 4 Most Carried 4 | . 4 Average Carried 3 | . 3 Final Capacity 4 | 4 4 Final Carried 4 | . 4 Class Distribution -------------------- 100% | Mutant Dominant Class ---------------- Mutant | -10/Materials Resources | -11 -10 ----------- Run | Scr Mat Matter Collected 307 | 200 107 Remotely . | . . Salvage Created 211 | . 211 Parts 11 | . 11 Haulers Intercepted . | . . Recyclers Shooed . | . . Parts Field Recycled . | . . Retrieved Matter . | . . Parts Self-Destructed . | . . Prevented . | . . Kills | -11 -10 ------- Run | Scr Mat Combat Hostiles Destroyed 4 | . 4 Melee 1 | . 1 Guns 2 | . 2 Classes Destroyed 2 | . 2 Watcher 1 | . 1 Grunt 4 | . 4 Best Kill Streak 2 | . 2 Combat Bots Only 2 | . 2 Max Kills in Single Turn 1 | . 1 Gunslinging . | . . Exploded . | . . Melee 1 | . 1 Uniques/NPCs Destroyed . | . . Combat | -11 -10 -------- Run | Scr Mat Damage Taken 473 | . 473 Core 250 | . 250 Absorbed by Shields . | . . Core Remaining (%) 100 | 100 . Volleys Fired 14 | . 14 Largest 1 | . 1 Hottest 40 | . 40 Shots Fired 14 | . 14 Gun 14 | . 14 Cannon . | . . Launcher . | . . Special . | . . Kinetic . | . . Thermal . | . . Explosive . | . . Electromagnetic 14 | . 14 Robot Hit Streak 5 | . 5 Robot Miss Streak 2 | . 2 Penetration Max . | . . Secondary Targets . | . . Shots Hit Robots 18 | . 18 Core Hits 7 | . 7 Critical Hits . | . . Critical Kills . | . . Critical Parts Destroyed . | . . Melee Attacks 45 | . 45 Impact . | . . Slashing 43 | . 43 Piercing . | . . Sneak Attacks 2 | . 2 Combat Hostiles . | . . Follow-up Attacks . | . . Damage Inflicted 330 | . 330 Guns 176 | . 176 Cannons . | . . Explosions 28 | . 28 Melee 126 | . 126 Ramming . | . . Kinetic . | . . Thermal 28 | . 28 Explosive . | . . Electromagnetic 176 | . 176 Impact . | . . Slashing 126 | . 126 Piercing . | . . Highest Corruption 6 | . 6 Average Corruption 5 | . 5 Corruption Purged . | . . Effects 12 | . 12 Message Errors 1 | . 1 Matter Fused 3 | . 3 Heat Flow Errors 2 | . 2 Energy Discharges 1 | . 1 Data Loss (minor) 2 | . 2 Targeting Errors 3 | . 3 Overload Shots . | . . Overflow Damage 1 | . 1 Projectiles . | . . Explosions . | . . Melee 1 | . 1 Knockbacks . | . . Impact . | . . Kinetic . | . . Secondary . | . . Self-Inflicted Damage . | . . Shots . | . . Rammed . | . . Targets Rammed . | . . Kicked . | . . Crushed . | . . Highest Temperature 274 | . 274 Average Temperature 92 | . 92 Received Heat Transfer 219 | . 219 Siege Activations . | . . Robots Corrupted 1 | . 1 Combat Hostiles 1 | . 1 Parts Fried 3 | . 3 Impact Corruptions . | . . Robots Melted . | . . Combat Hostiles . | . . Parts Melted . | . . Heat Transferred 50 | . 50 Parts Sabotaged . | . . Parts Stolen . | . . Parts Stripped . | . . Power Chain Reactions 1 | . 1 Missiles Intercepted . | . . Alert | -11 -10 ------- Run | Scr Mat Peak Influence 264 | . 264 Initial . | . . Average 120 | . 127 Maximum Alert Level 1 | . 1 Low Security (%) 70 | 100 69 Level 1 29 | . 30 Level 2 . | . . Level 3 . | . . Level 4 . | . . Level 5 . | . . High Security . | . . Max Security . | . . Squads Dispatched 4 | . 4 Investigation 4 | . 4 Extermination . | . . Reinforcement . | . . Assault . | . . Garrison . | . . Intercept . | . . Construction Impeded . | . . Haulers Reinforced . | . . Stealth | -11 -10 --------- Run | Scr Mat Distress Signals 1 | . 1 Communications Jammed . | . . Distress Signals . | . . Times Spotted 19 | . 19 Peak Tracking Total 8 | . 8 Tactical Retreats 4 | . 4 Traps | -11 -10 ------- Run | Scr Mat Traps Triggered . | . . Indirectly . | . . Trap Hack Attempts . | . . Triggered . | . . Disarmed . | . . Reprogrammed . | . . Reused . | . . Traps Extracted . | . . Installed . | . . Triggered . | . . Machines | -11 -10 ---------- Run | Scr Mat Machines Disabled . | . . Max in Single Turn . | . . Machines Sabotaged . | . . Garrisons Compromised . | . . Overloaded Fab Kills . | . . Fab Network Shutdowns . | . . Hacking | -11 -10 --------- Run | Scr Mat Machines Accessed 9 | . 9 Terminals 8 | . 8 Fabricators . | . . Repair Stations . | . . Recycling Units 1 | . 1 Scanalyzers . | . . Garrison Access . | . . Total Hacks 34 | . 34 Successful 27 | . 27 Failed 7 | . 7 Catastrophic 1 | . 1 Database Lockouts . | . . Manual 23 | . 23 Terminals 33 | . 33 Fabricators . | . . Repair Stations . | . . Recycling Units 1 | . 1 Scanalyzers . | . . Garrison Access . | . . Terminal Hacks 15 | . 15 Part Schematic 2 | . 2 Prototype ID Bank 2 | . 2 Terminal Index 1 | . 1 Alert Level 1 | . 1 Dispatch Records 2 | . 2 Recall Investigation 4 | . 4 Hauler Manifests 1 | . 1 Registered Components 1 | . 1 Zone Layout 1 | . 1 Fabricator Hacks . | . . Repair Station Hacks . | . . Recycling Unit Hacks . | . . Scanalyzer . | . . Garrison Access Hacks . | . . Unauthorized Hacks 12 | . 12 Terminals 11 | . 11 Track 3 | . 3 Assimilate 3 | . 3 Botnet 4 | . 4 Disrupt 1 | . 1 Fabricators . | . . Repair Stations . | . . Recycling Units 1 | . 1 Tunnel 1 | . 1 Scanalyzers . | . . Garrison Access . | . . Data Cores Recovered . | . . Used . | . . Hacking Detections 8 | . 8 Full Trace Events 7 | . 7 Feedback Events 1 | . 1 Corruption 1 | . 1 Feedback Blocked . | . . Robot Schematics Acquired . | . . Robots Built . | . . Matter . | . . Time . | . . Total Robot Build Rating . | . . Part Schematics Acquired 2 | . 2 Parts Built . | . . Matter . | . . Time . | . . Total Part Build Rating . | . . Parts Repaired . | . . Time . | . . Parts Recycled . | . . Recycled Matter . | . . Retrieved Matter . | . . Retrieved Components . | . . Parts Scanalyzed . | . . Part Schematics Acquired . | . . Parts Damaged . | . . Bothacking | -11 -10 ------------ Run | Scr Mat Used RIF Installer . | . . Robots Hacked 1 | . 1 Non-combat 1 | . 1 Combat . | . . Robot Hacks Applied 2 | . 2 no_distress 1 | . 1 check_alert 1 | . 1 Relay Couplers Released . | . . Robots Rewired . | . . Allies Hacked . | . . Hacks Repelled . | . . Allies | -11 -10 -------- Run | Scr Mat Total Allies 1 | . 1 Largest Group 1 | . 1 Highest-Rated Group 10 | . 10 Highest-Rated Ally 10 | . 10 Total Orders . | . . Ally Attacks . | . . Total Damage . | . . Kills . | . . Allies Corrupted . | . . Allies Melted . | . . Intel | -11 -10 ------- Run | Scr Mat Robot Analysis Total . | . . Derelict Logs Recovered . | . . Drone Launches . | . . Drone Recoveries . | . . Exploration | -11 -10 ------------- Run | Scr Mat Turns Passed 631 | 32 599 Spaces Moved 686 | 61 625 Core 290 | 61 229 Treads . | . . Legs . | . . Wheels . | . . Hover . | . . Flight 396 | . 396 Fastest Speed 37 | 50 37 Average Speed 44 | 50 43 Slowest Speed 120 | 50 120 Overloaded Moves . | . . Propulsion Burnouts . | . . Robots Hopped 2 | . 2 Cave-ins Triggered 1 | . 1 Exploration Rate (%) 43 | 2 84 Regions Visited 1 Branch Regions . Pre-discovered Areas 1 | . 1 Known Exits Taken . | . . Unknown Exits Taken 1 | 1 . Scrap Searched . | . . Spaces Dug 29 | . 29 Terrain Destroyed 31 | . 31 Melee 29 | . 29 Projectile . | . . AOE 2 | . 2 Terrain Rammed . | . . Walls Destroyed . | . . Machines Disabled . | . . Actions | -11 -10 --------- Run | Scr Mat Total 907 | 61 846 Wait 144 | . 144 Move 681 | 60 621 Hop 2 | . 2 Pick Up 4 | . 4 Fast Attach 7 | 1 6 Attach 4 | . 4 Detach 5 | . 5 Swap . | . . Drop 1 | . 1 Fire 14 | . 14 Melee 45 | . 45 Ram . | . . Kick . | . . Crush . | . . Escape Stasis . | . . Rewire . | . . Trap . | . . Miscellaneous . | . . Route ------- -11/Scrapyard -10/Materials (discovered 2 exits: [*Mat] / [*Min]) History --------- Turn | Location | Event 4 | -11/Scrapyard | Discovered new exit (range 15) 33 | -11/Scrapyard | Entered Materials 162 | -10/Materials | Discovered new exit (range 15) 227 | -10/Materials | Discovered new exit (range 5) 244 | -10/Materials | Crushed by falling debris 327 | -10/Materials | Build established: Mutant 409 | -10/Materials | Core integrity fell below 50% 425 | -10/Materials | Core integrity fell below 20% 632 | -10/Materials | Destroyed by S-10 Pest with Light Assault Rifle Last Messages --------------- 00597_ Jacked O-16 Technician... >>check_alert Querying alert level: Low Security 00599_ Sneak attack on O-16 Technician. 00599_ Jacked O-16 Technician... >>no_distress Distress signal routine blocked. 00612_ Connecting with Terminal... >>Inventory(Components) Retrieving component inventory records... No registered component stockpiles. Feedback: System corruption (+1%). 00612_ ALERT: Suspicious activity at Terminal M008. Dispatching Investigation squad. 00614_ Connecting with Terminal... >>Recall(Investigation) Establishing remote squad link... Recalled investigation squad WVNT7R75S9. 00626_ Acquired 10 matter. 00632_ System corrupted: Component data lost. Map ----- +----------------------------------------------------+ | # # #T ## !! ##"#"########????? | | ######### ## ! ##" #????? | | #???????# ## ###% #????? | | #?????### ###+######?# """ #????? | | #????## #??????# """"" #????? | | ####?#T #??????# """"" #????? | | # ## ?## #??????# """"" #????? | | ???# ??# ######??????# """ #????? | | #??# ?## ##??????????# #????? | | # ### ## ################+#####????? | | #???????? | | % T #???????? | | #???????? | | ##### ### ######## #???????? | | ????####/##### # ## #???????? | | ?????# + # ## #???????? | | ??????# """ ## # ## #???????? | | ??????#! """"" ## # ## ???????? | | ??????# """"" ## # ## ??????? | | ??????# """"" ## # ## ?????? | | ??????# """ ## # #########????? | | ??????# ! ## ###+###########????? | | ??????########### # #????? | | ????????????????# # #????? | | ????????????????# # """ #????? | | ????? ???????+ #####@##/ """ #????? | | ????? ???????# #???# ## """ #????? | | ????? ???????# #???# ## #????? | | ???????# #???#s##+######????? | | ???????# #???# #???????? | | ???????# #???###### #???????? | | ???????# #????????# #???????? | | "" """ #??????# #????????# #???????? | | "" """ #??????#m #????????# #???????? | | "" """ #??????# #????????# #???????? | | """ #?###?## s##???????# #???????? | | ###"### #???????# #???????? | | #???????# #???????? | | [ #???????# #???????? | | ######### ### [[#?? | | ###+### [[#?? | | #### T# ##"############# ]]#?? | | ???# ## # ##???????????+ ]]#?? | | ???# ## ##????????????# #####?? | | ?### ##! ##?????????????# #?????? | | ## " ## #??????????????####?????? | | # ## < ## "" #???????????????????????? | | #### ## Y" #???????????????????????? | | ##?######## "" #???????????????????????? | | ??????????# #???????????????????????? | +----------------------------------------------------+ Best States ------------- Heat Dissipation 25 Energy Generation 10 Energy Capacity 125 Matter Stores 300 Matter Capacity 300 Sight Range 16 Robot Scan Range 10 Terrain Scan Density 10 Utility Shielding 33 Evasion (%) 62 Item Schematics ----------------- Core Shielding | -10/Materials | Hacked Flight Unit | -10/Materials | Hacked Robot Schematics ------------------ None Fabricated ------------ Nothing Alien Tech Used ----------------- None Achievements -------------- None Challenges ------------ None Game ------ Seed RagnarokFluxStripper Manual? 0 Play Time 00:18:31 Cumulative 59.3 hours Start 2020.09.25 @ 13:26:07 End 2020.09.25 @ 13:46:17 Sessions 1 Manual Loads 0 Difficulty Rogue Special Mode None Game No. 75 Rogue 52 Adventurer 22 Explorer 1 Win Type - Total 1 Types 1/0/0/0/0/0/0/0/0 Lore% 34 Gallery% 43 Achievement% 35 Wizard Run 0 Options --------- ASCII 0 Keyboard 0 Movement Numpad Keybinds 0 Fullscreen 1 Font 14/SmallcapsGlow Map View 84x54 Tactical HUD 1 Map Filters NONE Filters NONE Steam 1 RUN: bea20a6d-f773-4ee7-a0c1-d412390c8962